[Event "Polofinale MCR junioru 2023"]
[Site "Czech Republic"]
[Date "2023.11.17"]
[Round "8.20"]
[White "Cerny, Michal"]
[Black "Pecka, Jan"]
[Result "1-0"]
[TimeControl "90 min per 40 moves + 15 min + 30 sec / move from move 1"]
[WhiteFideId "391964"]
[BlackFideId "23712520"]
[WhiteElo "1920"]
[BlackElo "1999"]

1. e4 {[%clk 01:30:55]} {[%emt 00:00:03]} Nc6 {[%clk 01:23:07]} {[%emt
00:07:55]} 2. d4 {[%clk 01:30:35]} {[%emt 00:00:50]} d5 {[%clk 01:23:28]}
{[%emt 00:00:09]} 3. e5 {[%clk 01:21:12]} {[%emt 00:09:52]} Bf5 {[%clk
01:22:40]} {[%emt 00:01:18]} 4. c3 {[%clk 01:20:12]} {[%emt 00:01:31]} e6
{[%clk 01:22:26]} {[%emt 00:00:44]} 5. Be3 {[%clk 01:10:35]} {[%emt 00:10:06]}
Nge7 {[%clk 01:15:01]} {[%emt 00:07:55]} 6. Nd2 {[%clk 01:03:21]} {[%emt
00:07:44]} f6 {[%clk 01:15:02]} {[%emt 00:00:29]} 7. f4 {[%clk 00:58:05]}
{[%emt 00:05:46]} Qd7 {[%clk 01:14:17]} {[%emt 00:01:15]} 8. Ngf3 {[%clk
00:55:37]} {[%emt 00:02:58]} O-O-O {[%clk 01:09:46]} {[%emt 00:05:02]} 9. b4
{[%clk 00:51:47]} {[%emt 00:04:20]} h6 {[%clk 01:06:11]} {[%emt 00:04:04]} 10.
Nb3 {[%clk 00:36:17]} {[%emt 00:16:01]} Nb8 {[%clk 01:02:04]} {[%emt 00:04:38]}
11. b5 {[%clk 00:26:34]} {[%emt 00:10:13]} Bg4 {[%clk 00:58:08]} {[%emt
00:04:25]} 12. Bf2 {[%clk 00:18:40]} {[%emt 00:08:26]} Nf5 {[%clk 00:57:27]}
{[%emt 00:01:11]} 13. h3 {[%clk 00:17:02]} {[%emt 00:02:08]} Bxf3 {[%clk
00:53:51]} {[%emt 00:04:05]} 14. Qxf3 {[%clk 00:17:30]} {[%emt 00:00:02]} h5
{[%clk 00:50:56]} {[%emt 00:03:25]} 15. Bd3 {[%clk 00:17:11]} {[%emt 00:00:49]}
g5 {[%clk 00:47:05]} {[%emt 00:04:21]} 16. g4 {[%clk 00:13:09]} {[%emt
00:04:31]} hxg4 {[%clk 00:45:32]} {[%emt 00:02:02]} 17. hxg4 {[%clk 00:13:38]}
{[%emt 00:00:02]} Rxh1+ {[%clk 00:44:34]} {[%emt 00:01:28]} 18. Qxh1 {[%clk
00:14:06]} {[%emt 00:00:01]} Nh6 {[%clk 00:44:45]} {[%emt 00:00:18]} 19. fxg5
{[%clk 00:12:43]} {[%emt 00:01:54]} fxg5 {[%clk 00:43:21]} {[%emt 00:01:54]} 20.
Qg2 {[%clk 00:12:06]} {[%emt 00:01:08]} Ba3 {[%clk 00:43:20]} {[%emt 00:00:30]}
21. Be3 {[%clk 00:11:58]} {[%emt 00:00:38]} Qe7 {[%clk 00:42:30]} {[%emt
00:01:20]} 22. Kd2 {[%clk 00:08:58]} {[%emt 00:03:31]} Nf7 {[%clk 00:39:23]}
{[%emt 00:03:37]} 23. Rh1 {[%clk 00:08:55]} {[%emt 00:00:33]} Rh8 {[%clk
00:39:46]} {[%emt 00:00:06]} 24. Rxh8+ {[%clk 00:07:51]} {[%emt 00:01:35]} Nxh8
{[%clk 00:39:28]} {[%emt 00:00:48]} 25. Qh3 {[%clk 00:08:07]} {[%emt 00:00:14]}
Nf7 {[%clk 00:35:44]} {[%emt 00:04:14]} 26. Qh5 {[%clk 00:08:24]} {[%emt
00:00:13]} Nd7 {[%clk 00:34:33]} {[%emt 00:01:40]} 27. Bg6 {[%clk 00:08:28]}
{[%emt 00:00:26]} Nfxe5 {[%clk 00:34:45]} {[%emt 00:00:19]} 28. dxe5 {[%clk
00:08:35]} {[%emt 00:00:23]} Nxe5 {[%clk 00:35:05]} {[%emt 00:00:10]} 29. Qh8+
{[%clk 00:08:38]} {[%emt 00:00:27]} 1-0

[Event "Polofinale MCR junioru 2023"]
[Site "Czech Republic"]
[Date "2023.11.17"]
[Round "8.21"]
[White "Sadil, Antonin"]
[Black "Trojan, Matyas"]
[Result "0-1"]
[TimeControl "90 min per 40 moves + 15 min + 30 sec / move from move 1"]
[WhiteFideId "23735597"]
[BlackFideId "23710764"]
[WhiteElo "1648"]
[BlackElo "1957"]

1. e4 {[%clk 01:29:26]} {[%emt 00:01:34]} e5 {[%clk 01:30:55]} {[%emt
00:00:05]} 2. Nf3 {[%clk 01:29:41]} {[%emt 00:00:15]} Nc6 {[%clk 01:31:20]}
{[%emt 00:00:04]} 3. Nc3 {[%clk 01:29:59]} {[%emt 00:00:11]} Nf6 {[%clk
01:31:19]} {[%emt 00:00:31]} 4. Bb5 {[%clk 01:30:21]} {[%emt 00:00:08]} Bb4
{[%clk 01:31:23]} {[%emt 00:00:26]} 5. O-O {[%clk 01:30:29]} {[%emt 00:00:22]}
O-O {[%clk 01:30:47]} {[%emt 00:01:05]} 6. d3 {[%clk 01:30:50]} {[%emt
00:00:09]} d6 {[%clk 01:30:28]} {[%emt 00:00:49]} 7. Bg5 {[%clk 01:30:57]}
{[%emt 00:00:23]} Bxc3 {[%clk 01:30:25]} {[%emt 00:00:33]} 8. bxc3 {[%clk
01:30:57]} {[%emt 00:00:30]} h6 {[%clk 01:30:20]} {[%emt 00:00:35]} 9. Bh4
{[%clk 01:26:20]} {[%emt 00:05:07]} g5 {[%clk 01:29:52]} {[%emt 00:00:58]} 10.
Bg3 {[%clk 01:18:55]} {[%emt 00:07:55]} Kg7 {[%clk 01:29:36]} {[%emt 00:00:45]}
11. Bxc6 {[%clk 01:16:05]} {[%emt 00:03:20]} bxc6 {[%clk 01:29:57]} {[%emt
00:00:09]} 12. Qd2 {[%clk 01:16:06]} {[%emt 00:00:29]} Nh7 {[%clk 01:28:53]}
{[%emt 00:01:34]} 13. d4 {[%clk 01:14:18]} {[%emt 00:02:18]} f6 {[%clk
01:26:15]} {[%emt 00:03:08]} 14. Rab1 {[%clk 01:09:00]} {[%emt 00:05:49]} f5
{[%clk 01:16:48]} {[%emt 00:09:57]} 15. exf5 {[%clk 01:07:08]} {[%emt
00:02:22]} e4 {[%clk 01:16:36]} {[%emt 00:00:42]} 16. Ne1 {[%clk 01:06:45]}
{[%emt 00:00:53]} Ba6 {[%clk 01:16:49]} {[%emt 00:00:17]} 17. d5 {[%clk
01:03:44]} {[%emt 00:03:31]} Bxf1 {[%clk 01:12:58]} {[%emt 00:04:20]} 18. Kxf1
{[%clk 01:03:52]} {[%emt 00:00:22]} c5 {[%clk 01:05:29]} {[%emt 00:07:59]} 19.
Qe3 {[%clk 01:02:21]} {[%emt 00:02:01]} Qe7 {[%clk 01:04:45]} {[%emt 00:01:14]}
20. Nf3 {[%clk 01:01:08]} {[%emt 00:01:43]} Rxf5 {[%clk 01:04:43]} {[%emt
00:00:32]} 21. c4 {[%clk 01:01:03]} {[%emt 00:00:36]} Raf8 {[%clk 00:58:08]}
{[%emt 00:07:04]} 22. Nd2 {[%clk 00:57:50]} {[%emt 00:03:43]} Nf6 {[%clk
00:57:37]} {[%emt 00:01:01]} 23. Rb7 {[%clk 00:56:42]} {[%emt 00:01:38]} Nh5
{[%clk 00:55:12]} {[%emt 00:02:54]} 24. Rxa7 {[%clk 00:53:57]} {[%emt
00:03:15]} Nxg3+ {[%clk 00:55:25]} {[%emt 00:00:17]} 25. hxg3 {[%clk 00:53:43]}
{[%emt 00:00:43]} Rxf2+ {[%clk 00:54:54]} {[%emt 00:01:01]} 26. Kg1 {[%clk
00:53:12]} {[%emt 00:01:01]} Qf7 {[%clk 00:52:46]} {[%emt 00:02:38]} 27. g4
{[%clk 00:52:53]} {[%emt 00:00:49]} Rf4 {[%clk 00:45:07]} {[%emt 00:08:10]} 28.
Nxe4 {[%clk 00:50:17]} {[%emt 00:03:06]} Re8 {[%clk 00:43:23]} {[%emt
00:02:14]} 29. Qc3+ {[%clk 00:50:33]} {[%emt 00:00:14]} Kg8 {[%clk 00:41:10]}
{[%emt 00:02:43]} 30. Nd2 {[%clk 00:48:27]} {[%emt 00:02:36]} Rxg4 {[%clk
00:40:18]} {[%emt 00:01:22]} 31. Nf3 {[%clk 00:47:23]} {[%emt 00:01:34]} Rge4
{[%clk 00:40:22]} {[%emt 00:00:26]} 32. Qa5 {[%clk 00:45:51]} {[%emt 00:02:02]}
g4 {[%clk 00:38:49]} {[%emt 00:02:03]} 33. Rxc7 {[%clk 00:45:08]} {[%emt
00:01:14]} Qf6 {[%clk 00:39:11]} {[%emt 00:00:07]} 34. Qd2 {[%clk 00:35:24]}
{[%emt 00:10:13]} gxf3 {[%clk 00:38:44]} {[%emt 00:00:58]} 35. Qf2 {[%clk
00:34:51]} {[%emt 00:01:02]} Re1+ {[%clk 00:38:27]} {[%emt 00:00:47]} 36. Kh2
{[%clk 00:35:04]} {[%emt 00:00:17]} Qe5+ {[%clk 00:38:13]} {[%emt 00:00:43]} 37.
Qg3+ {[%clk 00:34:44]} {[%emt 00:00:51]} Qxg3+ {[%clk 00:38:36]} {[%emt
00:00:07]} 38. Kxg3 {[%clk 00:35:03]} {[%emt 00:00:10]} fxg2 {[%clk 00:38:53]}
{[%emt 00:00:13]} 39. Kxg2 {[%clk 00:35:16]} {[%emt 00:00:17]} R8e3 {[%clk
00:38:12]} {[%emt 00:01:10]} 40. Rd7 {[%clk 00:35:03]} {[%emt 00:00:44]} R1e2+
{[%clk 00:38:28]} {[%emt 00:00:14]} 41. Kf1 {[%clk 00:35:13]} {[%emt 00:00:21]}
Rxc2 {[%clk 00:38:42]} {[%emt 00:00:16]} 42. Rxd6 {[%clk 00:35:15]} {[%emt
00:00:28]} Rf3+ {[%clk 00:39:04]} {[%emt 00:00:07]} 43. Ke1 {[%clk 00:35:12]}
{[%emt 00:00:33]} Rh3 {[%clk 00:38:58]} {[%emt 00:00:37]} 44. Rg6+ {[%clk
00:34:54]} {[%emt 00:00:48]} Kf7 {[%clk 00:39:24]} {[%emt 00:00:03]} 45. Rg1
{[%clk 00:35:09]} {[%emt 00:00:16]} Rxa2 {[%clk 00:39:33]} {[%emt 00:00:21]} 46.
Rf1+ {[%clk 00:35:07]} {[%emt 00:00:32]} Ke7 {[%clk 00:39:52]} {[%emt
00:00:11]} 47. d6+ {[%emt 00:00:20]} Kxd6 {[%clk 00:40:15]} {[%emt 00:00:05]}
48. Rf6+ {[%clk 00:35:39]} {[%emt 00:00:11]} Ke5 {[%clk 00:40:38]} {[%emt
00:00:07]} 0-1

[Event "Polofinale MCR junioru 2023"]
[Site "Czech Republic"]
[Date "2023.11.17"]
[Round "8.22"]
[White "Benes, Jachym"]
[Black "Roubal, Matyas"]
[Result "1-0"]
[TimeControl "90 min per 40 moves + 15 min + 30 sec / move from move 1"]
[WhiteFideId "23710870"]
[BlackFideId "23727152"]
[WhiteElo "1950"]
[BlackElo "1837"]

1. d4 {[%clk 01:24:08]} {[%emt 00:06:52]} Nf6 {[%clk 01:30:53]} {[%emt
00:00:07]} 2. c4 {[%clk 01:24:34]} {[%emt 00:00:05]} g6 {[%clk 01:31:19]}
{[%emt 00:00:04]} 3. Nc3 {[%clk 01:25:01]} {[%emt 00:00:03]} Bg7 {[%clk
01:31:45]} {[%emt 00:00:03]} 4. e4 {[%clk 01:25:28]} {[%emt 00:00:03]} d6
{[%clk 01:32:12]} {[%emt 00:00:03]} 5. Nf3 {[%clk 01:25:54]} {[%emt 00:00:03]}
O-O {[%clk 01:32:38]} {[%emt 00:00:05]} 6. h3 {[%clk 01:26:06]} {[%emt
00:00:19]} c5 {[%clk 01:32:16]} {[%emt 00:00:52]} 7. d5 {[%clk 01:26:16]}
{[%emt 00:00:20]} e6 {[%clk 01:32:34]} {[%emt 00:00:12]} 8. Be2 {[%clk
01:23:41]} {[%emt 00:03:05]} exd5 {[%clk 01:31:53]} {[%emt 00:01:10]} 9. exd5
{[%clk 01:22:26]} {[%emt 00:01:45]} Re8 {[%clk 01:31:08]} {[%emt 00:01:15]} 10.
O-O {[%clk 01:22:33]} {[%emt 00:00:23]} Ne4 {[%clk 01:29:35]} {[%emt 00:02:04]}
11. Nxe4 {[%clk 01:21:07]} {[%emt 00:01:55]} Rxe4 {[%clk 01:30:03]} {[%emt
00:00:02]} 12. Bd3 {[%clk 01:21:25]} {[%emt 00:00:12]} Re8 {[%clk 01:29:53]}
{[%emt 00:00:39]} 13. Bg5 {[%clk 01:20:45]} {[%emt 00:01:11]} Qa5 {[%clk
01:25:33]} {[%emt 00:04:51]} 14. Re1 {[%clk 01:04:13]} {[%emt 00:17:02]} Rxe1+
{[%clk 01:25:33]} {[%emt 00:00:29]} 15. Qxe1 {[%clk 01:02:44]} {[%emt
00:01:59]} Qxe1+ {[%clk 01:25:53]} {[%emt 00:00:11]} 16. Rxe1 {[%clk 01:03:12]}
{[%emt 00:00:02]} Bd7 {[%clk 01:26:12]} {[%emt 00:00:10]} 17. Be7 {[%clk
01:02:42]} {[%emt 00:01:00]} Bxb2 {[%clk 01:24:28]} {[%emt 00:02:14]} 18. Bxd6
{[%clk 01:01:58]} {[%emt 00:01:14]} b6 {[%clk 01:23:52]} {[%emt 00:01:06]} 19.
Ne5 {[%clk 00:57:37]} {[%emt 00:04:52]} Ba4 {[%clk 01:15:05]} {[%emt 00:09:17]}
20. f4 {[%clk 00:37:24]} {[%emt 00:20:42]} Na6 {[%clk 01:10:00]} {[%emt
00:05:36]} 21. Nc6 {[%clk 00:30:33]} {[%emt 00:07:20]} Bc3 {[%clk 01:06:52]}
{[%emt 00:03:38]} 22. Re7 {[%clk 00:26:50]} {[%emt 00:04:15]} Nb4 {[%clk
01:00:34]} {[%emt 00:06:19]} 23. Be4 {[%clk 00:23:41]} {[%emt 00:03:38]} Bf6
{[%clk 00:58:54]} {[%emt 00:02:40]} 24. Rb7 {[%clk 00:22:44]} {[%emt 00:01:27]}
Nxa2 {[%clk 00:57:06]} {[%emt 00:02:18]} 25. Nxa7 {[%clk 00:21:34]} {[%emt
00:01:41]} Re8 {[%clk 00:55:48]} {[%emt 00:01:47]} 26. Bf3 {[%clk 00:20:31]}
{[%emt 00:01:33]} Bd4+ {[%clk 00:55:18]} {[%emt 00:01:00]} 27. Kh2 {[%clk
00:19:53]} {[%emt 00:01:08]} Bb3 {[%clk 00:54:39]} {[%emt 00:01:09]} 28. Be7
{[%clk 00:18:27]} {[%emt 00:01:57]} Be3 {[%clk 00:52:00]} {[%emt 00:03:08]} 29.
g3 {[%clk 00:17:02]} {[%emt 00:01:55]} Bxc4 {[%clk 00:52:13]} {[%emt 00:00:17]}
30. d6 {[%clk 00:17:27]} {[%emt 00:00:06]} Be6 {[%clk 00:52:39]} {[%emt
00:00:03]} 31. Bc6 {[%clk 00:17:49]} {[%emt 00:00:09]} Ra8 {[%clk 00:52:44]}
{[%emt 00:00:25]} 32. d7 {[%clk 00:12:47]} {[%emt 00:05:32]} Bxd7 {[%clk
00:53:02]} {[%emt 00:00:12]} 33. Rxd7 {[%clk 00:13:10]} {[%emt 00:00:07]} Re8
{[%clk 00:52:28]} {[%emt 00:01:04]} 34. Bf6 {[%clk 00:13:08]} {[%emt 00:00:33]}
Nb4 {[%clk 00:52:12]} {[%emt 00:00:46]} 35. Bb5 {[%clk 00:13:23]} {[%emt
00:00:15]} Bd4 {[%clk 00:51:13]} {[%emt 00:01:29]} 36. Bxd4 {[%clk 00:13:42]}
{[%emt 00:00:11]} cxd4 {[%clk 00:51:41]} {[%emt 00:00:02]} 37. Rxd4 {[%clk
00:14:04]} {[%emt 00:00:07]} Ra8 {[%clk 00:52:05]} {[%emt 00:00:06]} 38. Rxb4
{[%clk 00:14:08]} {[%emt 00:00:27]} Rxa7 {[%clk 00:52:30]} {[%emt 00:00:04]} 39.
Bc4 {[%clk 00:14:35]} {[%emt 00:00:04]} Rb7 {[%clk 00:52:54]} {[%emt 00:00:06]}
40. Kg2 {[%clk 00:14:49]} {[%emt 00:00:16]} Kg7 {[%clk 00:53:19]} {[%emt
00:00:05]} 41. Kf3 {[%clk 00:15:12]} {[%emt 00:00:06]} Kf6 {[%clk 00:53:45]}
{[%emt 00:00:05]} 42. Bd5 {[%clk 00:15:39]} {[%emt 00:00:04]} Rb8 {[%clk
00:54:10]} {[%emt 00:00:05]} 43. Rc4 {[%clk 00:15:29]} {[%emt 00:00:40]} Ke7
{[%clk 00:53:48]} {[%emt 00:00:51]} 44. Ke4 {[%clk 00:15:47]} {[%emt 00:00:12]}
b5 {[%clk 00:53:47]} {[%emt 00:00:31]} 45. Rb4 {[%clk 00:15:05]} {[%emt
00:01:12]} Kd6 {[%clk 00:54:13]} {[%emt 00:00:04]} 46. Bxf7 {[%clk 00:15:05]}
{[%emt 00:00:30]} 1-0

[Event "Polofinale MCR junioru 2023"]
[Site "Czech Republic"]
[Date "2023.11.17"]
[Round "8.23"]
[White "Davidek, Zdenek"]
[Black "Nespurek, Jakub"]
[Result "1-0"]
[TimeControl "90 min per 40 moves + 15 min + 30 sec / move from move 1"]
[WhiteFideId "23725001"]
[BlackFideId "391816"]
[WhiteElo "2099"]
[BlackElo "1680"]

1. d4 {[%clk 01:30:01]} {[%emt 00:00:58]} g6 {[%clk 01:30:42]} {[%emt
00:00:19]} 2. c4 {[%clk 01:29:24]} {[%emt 00:01:08]} d6 {[%clk 01:30:52]}
{[%emt 00:00:19]} 3. Nc3 {[%clk 01:29:41]} {[%emt 00:00:13]} Bg7 {[%clk
01:30:41]} {[%emt 00:00:40]} 4. e4 {[%clk 01:30:06]} {[%emt 00:00:05]} Nf6
{[%clk 01:29:29]} {[%emt 00:01:43]} 5. Be2 {[%clk 01:29:32]} {[%emt 00:01:04]}
O-O {[%clk 01:28:45]} {[%emt 00:01:13]} 6. h4 {[%clk 01:28:44]} {[%emt
00:01:18]} c5 {[%clk 01:26:01]} {[%emt 00:03:14]} 7. d5 {[%clk 01:29:10]}
{[%emt 00:00:05]} e6 {[%clk 01:18:28]} {[%emt 00:08:03]} 8. h5 {[%clk
01:29:23]} {[%emt 00:00:16]} exd5 {[%clk 01:17:57]} {[%emt 00:01:01]} 9. exd5
{[%clk 01:29:48]} {[%emt 00:00:05]} Qe7 {[%clk 01:17:08]} {[%emt 00:01:19]} 10.
Kf1 {[%clk 01:27:34]} {[%emt 00:02:44]} Ne4 {[%clk 01:12:37]} {[%emt 00:05:01]}
11. Nxe4 {[%clk 01:27:26]} {[%emt 00:00:38]} Qxe4 {[%clk 01:12:57]} {[%emt
00:00:10]} 12. Bd3 {[%clk 01:26:33]} {[%emt 00:01:23]} Qe7 {[%clk 01:12:06]}
{[%emt 00:01:21]} 13. Qc2 {[%clk 01:21:29]} {[%emt 00:05:35]} Nd7 {[%clk
01:09:10]} {[%emt 00:03:25]} 14. Nf3 {[%clk 01:16:39]} {[%emt 00:05:20]} Ne5
{[%clk 01:08:44]} {[%emt 00:00:57]} 15. Bg5 {[%clk 01:12:20]} {[%emt 00:04:49]}
f6 {[%clk 01:04:59]} {[%emt 00:04:15]} 16. Bf4 {[%clk 01:09:42]} {[%emt
00:03:08]} Nxd3 {[%clk 01:03:14]} {[%emt 00:02:16]} 17. Qxd3 {[%clk 01:08:58]}
{[%emt 00:01:14]} Bf5 {[%clk 01:02:27]} {[%emt 00:01:17]} 18. Qc3 {[%clk
01:03:19]} {[%emt 00:06:08]} g5 {[%clk 00:54:45]} {[%emt 00:08:12]} 19. Re1
{[%clk 00:47:11]} {[%emt 00:16:38]} Qd7 {[%clk 00:54:05]} {[%emt 00:01:10]} 20.
h6 {[%clk 00:46:55]} {[%emt 00:00:46]} Bh8 {[%clk 00:53:55]} {[%emt 00:00:40]}
21. Bh2 {[%clk 00:45:29]} {[%emt 00:01:56]} Rae8 {[%clk 00:49:27]} {[%emt
00:04:58]} 22. Rg1 {[%clk 00:27:50]} {[%emt 00:18:11]} b5 {[%clk 00:35:55]}
{[%emt 00:14:02]} 23. Rxe8 {[%clk 00:23:14]} {[%emt 00:05:05]} Rxe8 {[%clk
00:36:07]} {[%emt 00:00:18]} 24. b3 {[%clk 00:22:01]} {[%emt 00:01:43]} b4
{[%clk 00:34:56]} {[%emt 00:01:41]} 25. Qd2 {[%clk 00:22:11]} {[%emt 00:00:20]}
Be4 {[%clk 00:31:32]} {[%emt 00:03:54]} 26. Ne1 {[%clk 00:21:55]} {[%emt
00:00:46]} Bg6 {[%clk 00:29:01]} {[%emt 00:03:01]} 27. g4 {[%clk 00:21:07]}
{[%emt 00:01:18]} f5 {[%clk 00:17:57]} {[%emt 00:11:34]} 28. Qxg5 {[%clk
00:16:27]} {[%emt 00:05:10]} Bc3 {[%clk 00:17:09]} {[%emt 00:01:19]} 29. Nf3
{[%clk 00:16:15]} {[%emt 00:00:42]} fxg4 {[%clk 00:16:10]} {[%emt 00:01:29]} 30.
Rxg4 {[%clk 00:16:43]} {[%emt 00:00:02]} Kh8 {[%clk 00:15:40]} {[%emt
00:01:00]} 31. Kg2 {[%clk 00:13:06]} {[%emt 00:04:07]} Be4 {[%clk 00:14:49]}
{[%emt 00:01:21]} 32. Bg3 {[%clk 00:09:53]} {[%emt 00:03:42]} Rf8 {[%clk
00:10:57]} {[%emt 00:04:22]} 33. Rxe4 {[%clk 00:09:51]} {[%emt 00:00:32]} 1-0

[Event "Polofinale MCR junioru 2023"]
[Site "Czech Republic"]
[Date "2023.11.17"]
[Round "8.24"]
[White "Mydlar, Matej"]
[Black "Andrle, Filip"]
[Result "1-0"]
[TimeControl "90 min per 40 moves + 15 min + 30 sec / move from move 1"]
[WhiteFideId "23735074"]
[BlackFideId "23718749"]
[WhiteElo "1809"]
[BlackElo "2005"]

1. e4 {[%clk 01:30:39]} {[%emt 00:00:20]} c5 {[%clk 01:30:54]} {[%emt
00:00:07]} 2. Nf3 {[%clk 01:30:30]} {[%emt 00:00:38]} Nc6 {[%clk 01:31:19]}
{[%emt 00:00:06]} 3. d4 {[%clk 01:30:24]} {[%emt 00:00:36]} cxd4 {[%clk
01:31:38]} {[%emt 00:00:13]} 4. Nxd4 {[%clk 01:28:54]} {[%emt 00:01:59]} Nf6
{[%clk 01:30:37]} {[%emt 00:01:31]} 5. Nc3 {[%clk 01:29:13]} {[%emt 00:00:12]}
d6 {[%clk 01:30:55]} {[%emt 00:00:12]} 6. Bc4 {[%clk 01:25:20]} {[%emt
00:04:22]} e6 {[%clk 01:28:01]} {[%emt 00:03:24]} 7. Be3 {[%clk 01:23:41]}
{[%emt 00:02:09]} Be7 {[%clk 01:25:09]} {[%emt 00:03:22]} 8. Bb3 {[%clk
01:21:43]} {[%emt 00:02:28]} a6 {[%clk 01:22:43]} {[%emt 00:02:56]} 9. f4
{[%clk 01:19:47]} {[%emt 00:02:26]} Qc7 {[%clk 01:17:15]} {[%emt 00:05:58]} 10.
O-O {[%clk 01:19:06]} {[%emt 00:01:11]} O-O {[%clk 01:13:50]} {[%emt 00:03:55]}
11. a4 {[%clk 01:15:29]} {[%emt 00:04:07]} b6 {[%clk 01:08:10]} {[%emt
00:06:10]} 12. f5 {[%clk 01:15:03]} {[%emt 00:00:56]} Nxd4 {[%clk 00:48:33]}
{[%emt 00:20:06]} 13. Qxd4 {[%clk 01:14:07]} {[%emt 00:01:27]} Rb8 {[%clk
00:40:02]} {[%emt 00:09:02]} 14. h3 {[%clk 00:58:30]} {[%emt 00:16:07]} d5
{[%clk 00:27:39]} {[%emt 00:12:55]} 15. fxe6 {[%clk 00:47:43]} {[%emt
00:11:17]} fxe6 {[%clk 00:23:10]} {[%emt 00:04:59]} 16. exd5 {[%clk 00:43:05]}
{[%emt 00:05:07]} Bc5 {[%clk 00:21:18]} {[%emt 00:02:22]} 17. Qd3 {[%clk
00:38:41]} {[%emt 00:04:54]} Rd8 {[%clk 00:18:20]} {[%emt 00:03:27]} 18. Kh1
{[%clk 00:36:57]} {[%emt 00:02:15]} Bb7 {[%clk 00:12:19]} {[%emt 00:06:32]} 19.
Bf4 {[%clk 00:36:36]} {[%emt 00:00:50]} Bd6 {[%clk 00:12:02]} {[%emt 00:00:48]}
20. Bxd6 {[%clk 00:29:48]} {[%emt 00:07:17]} Rxd6 {[%clk 00:08:36]} {[%emt
00:03:56]} 21. Qg3 {[%clk 00:29:18]} {[%emt 00:00:59]} Nxd5 {[%clk 00:07:03]}
{[%emt 00:02:05]} 22. Rae1 {[%clk 00:23:46]} {[%emt 00:06:01]} Rbd8 {[%clk
00:04:01]} {[%emt 00:03:33]} 23. Qe5 {[%clk 00:23:04]} {[%emt 00:01:11]} Qd7
{[%clk 00:02:42]} {[%emt 00:01:49]} 24. Ne4 {[%clk 00:21:11]} {[%emt 00:02:22]}
Rc6 {[%clk 00:02:53]} {[%emt 00:00:20]} 25. Ng5 {[%clk 00:21:05]} {[%emt
00:00:36]} Rf8 {[%clk 00:00:36]} {[%emt 00:02:48]} 26. Rxf8+ {[%clk 00:19:41]}
{[%emt 00:01:54]} Kxf8 {[%clk 00:01:00]} {[%emt 00:00:06]} 27. Nxe6+ {[%clk
00:20:02]} {[%emt 00:00:08]} Rxe6 {[%clk 00:01:13]} {[%emt 00:00:18]} 28. Qxe6
{[%clk 00:20:26]} {[%emt 00:00:06]} Qxe6 {[%clk 00:01:32]} {[%emt 00:00:11]} 29.
Rxe6 {[%clk 00:20:50]} {[%emt 00:00:06]} Nf4 {[%clk 00:01:58]} {[%emt
00:00:04]} 30. Rxb6 {[%clk 00:20:57]} {[%emt 00:00:24]} Bxg2+ {[%clk 00:02:18]}
{[%emt 00:00:10]} 31. Kh2 {[%clk 00:21:18]} {[%emt 00:00:07]} Bf1 {[%clk
00:02:01]} {[%emt 00:00:47]} 32. Rb7 {[%clk 00:20:35]} {[%emt 00:01:13]} 1-0

[Event "Polofinale MCR junioru 2023"]
[Site "Czech Republic"]
[Date "2023.11.17"]
[Round "8.25"]
[White "Urbansky, Stepan"]
[Black "Vana, Jan"]
[Result "0-1"]
[TimeControl "90 min per 40 moves + 15 min + 30 sec / move from move 1"]
[WhiteFideId "23761741"]
[BlackFideId "23726016"]
[WhiteElo "1675"]
[BlackElo "1965"]

1. e4 {[%clk 01:30:54]} {[%emt 00:00:04]} c5 {[%clk 01:30:58]} {[%emt
00:00:03]} 2. Nf3 {[%clk 01:31:13]} {[%emt 00:00:10]} Nc6 {[%clk 01:31:23]}
{[%emt 00:00:06]} 3. d4 {[%clk 01:31:31]} {[%emt 00:00:12]} cxd4 {[%clk
01:31:50]} {[%emt 00:00:03]} 4. Nxd4 {[%clk 01:31:52]} {[%emt 00:00:07]} Nf6
{[%clk 01:32:18]} {[%emt 00:00:04]} 5. Nc3 {[%clk 01:32:12]} {[%emt 00:00:09]}
e5 {[%clk 01:32:45]} {[%emt 00:00:04]} 6. Ndb5 {[%clk 01:32:31]} {[%emt
00:00:11]} d6 {[%clk 01:33:11]} {[%emt 00:00:04]} 7. Bg5 {[%clk 01:32:49]}
{[%emt 00:00:11]} a6 {[%clk 01:33:38]} {[%emt 00:00:04]} 8. Na3 {[%clk
01:33:10]} {[%emt 00:00:09]} b5 {[%clk 01:34:05]} {[%emt 00:00:03]} 9. Nd5
{[%clk 01:33:34]} {[%emt 00:00:05]} Be7 {[%clk 01:34:32]} {[%emt 00:00:03]} 10.
Bxf6 {[%clk 01:33:54]} {[%emt 00:00:10]} Bxf6 {[%clk 01:34:58]} {[%emt
00:00:05]} 11. c3 {[%clk 01:34:15]} {[%emt 00:00:08]} O-O {[%clk 01:35:23]}
{[%emt 00:00:06]} 12. Nc2 {[%clk 01:34:05]} {[%emt 00:00:40]} Rb8 {[%clk
01:35:50]} {[%emt 00:00:03]} 13. Be2 {[%clk 01:34:21]} {[%emt 00:00:13]} Bg5
{[%clk 01:36:15]} {[%emt 00:00:06]} 14. O-O {[%clk 01:34:30]} {[%emt 00:00:21]}
Kh8 {[%clk 01:36:43]} {[%emt 00:00:02]} 15. Qd3 {[%clk 01:34:08]} {[%emt
00:00:52]} f5 {[%clk 01:37:08]} {[%emt 00:00:05]} 16. Bf3 {[%clk 01:34:32]}
{[%emt 00:00:05]} g6 {[%clk 01:37:36]} {[%emt 00:00:04]} 17. Rfd1 {[%clk
01:32:05]} {[%emt 00:02:56]} a5 {[%clk 01:37:29]} {[%emt 00:00:37]} 18. Nde3
{[%clk 01:21:02]} {[%emt 00:11:32]} Bxe3 {[%clk 01:37:54]} {[%emt 00:00:05]} 19.
Nxe3 {[%clk 01:20:19]} {[%emt 00:01:13]} f4 {[%clk 01:38:19]} {[%emt 00:00:06]}
20. Qxd6 {[%clk 01:14:37]} {[%emt 00:06:11]} fxe3 {[%clk 01:10:14]} {[%emt
00:28:34]} 21. Qxc6 {[%clk 01:13:09]} {[%emt 00:01:58]} exf2+ {[%clk 00:49:55]}
{[%emt 00:20:50]} 22. Kxf2 {[%clk 01:11:23]} {[%emt 00:02:16]} Qg5 {[%clk
00:44:31]} {[%emt 00:05:55]} 23. Qc5 {[%clk 01:04:57]} {[%emt 00:06:54]} Bg4
{[%clk 00:33:05]} {[%emt 00:11:57]} 24. Qe3 {[%clk 01:03:52]} {[%emt 00:01:34]}
Qh5 {[%clk 00:26:36]} {[%emt 00:07:01]} 25. Rh1 {[%clk 00:56:26]} {[%emt
00:07:53]} Rxf3+ {[%clk 00:19:46]} {[%emt 00:07:22]} 26. gxf3 {[%clk 00:55:22]}
{[%emt 00:01:35]} Rf8 {[%clk 00:20:07]} {[%emt 00:00:09]} 27. Ke1 {[%clk
00:45:37]} {[%emt 00:10:15]} Rxf3 {[%clk 00:15:03]} {[%emt 00:05:34]} 28. Qb6
{[%clk 00:44:23]} {[%emt 00:01:44]} Qh4+ {[%clk 00:12:33]} {[%emt 00:03:00]} 29.
Kd1 {[%clk 00:29:53]} {[%emt 00:15:00]} Rf6+ {[%clk 00:12:53]} {[%emt
00:00:10]} 0-1